bitfinex-derivatives/quotes_SOLF0:USTF0_20260104
["timestamp","ask_amount","ask_price","bid_price","bid_amount"]
[1767568720726,0.79959324,133.87,133.8,6.7293]
[1767568721222,6.7255,133.88,133.81,6.7288]
[1767568721427,89.09959324,133.89,133.81,6.7288]
[1767568721921,0.79959324,133.89,133.81,6.7288]
[1767568722524,7.52459324,133.89,133.81,6.7288]
[1767568722723,0.79959324,133.89,133.82,6.7283]
[1767568722915,0.79959324,133.89,133.81,2.41412344]
[1767568724711,0.79959324,133.89,133.83,6.7276]
[1767568725920,0.79959324,133.89,133.77,107.11752344]
[1767568727624,0.79959324,133.87,133.8,6.7293]
[1767568729027,6.41593938,133.86,133.78,6.7301]
[1767568729221,0.79959324,133.86,133.78,6.7301]
[1767568729422,0.79959324,133.85,133.76,6.7311]
[1767568730625,7.52659324,133.85,133.77,6.7308]
[1767568735232,0.79959324,133.84,133.77,6.7308]
[1767568739334,0.79959324,133.83,133.75,95.0316]
[1767568740533,0.79959324,133.83,133.76,6.7313]
[1767568740740,9.14142344,133.85,133.76,6.7313]
[1767568740741,0.78765335,133.84,133.76,6.7313]
[1767568740933,0.78765335,133.84,133.74,107.13802344]
[1767568742735,0.78765335,133.84,133.77,6.7308]
[1767568747245,7.51535335,133.84,133.75,6.7316]
[1767568747545,7.51535335,133.84,133.74,104.7239]
[1767568748644,7.51535335,133.84,133.77,6.7309]
[1767568753452,13.13251258,133.83,133.75,6.7316]
[1767568753634,7.51565335,133.83,133.75,6.7316]
[1767568755449,7.51565335,133.83,133.76,6.7314]
[1767568755750,0.78765335,133.83,133.76,6.7314]
[1767568761253,7.51565335,133.83,133.76,6.7314]
[1767568766051,7.51495335,133.85,133.77,6.7309]
[1767568766359,5.61840499,133.84,133.77,6.7309]
[1767568766657,7.51495335,133.85,133.77,6.7309]
[1767568766960,5.61909535,133.84,133.78,6.7302]
[1767568767158,0.78765335,133.85,133.78,6.7302]
[1767568767353,5.61964714,133.84,133.78,6.7302]
[1767568767553,0.78765335,133.85,133.78,6.7302]
[1767568767758,5.61985096,133.84,133.78,6.7302]
[1767568767960,0.78765335,133.85,133.78,6.7302]
[1767568768160,5.61985107,133.84,133.78,6.7302]
[1767568768362,5.61985107,133.83,133.78,6.7302]
[1767568768556,0.78765335,133.85,133.78,6.7302]
[1767568768757,5.62179674,133.84,133.78,6.7302]
[1767568768956,5.62179674,133.83,133.78,6.7302]
[1767568769261,0.78765335,133.85,133.78,6.7302]
[1767568769458,5.62391796,133.84,133.78,6.7302]
[1767568769659,5.62391796,133.83,133.78,6.7302]
[1767568769864,0.78765335,133.85,133.78,6.7302]
[1767568770054,5.62411541,133.84,133.78,6.7302]
[1767568770360,5.62411541,133.83,133.78,6.7302]
[1767568770550,0.78765335,133.85,133.78,6.7302]
[1767568770751,5.62698352,133.84,133.79,6.7298]
[1767568770957,0.80130624,133.87,133.78,2.41412344]
[1767568771156,0.80130624,133.89,133.78,107.10742344]
[1767568771463,5.63068671,133.88,133.78,107.10742344]
[1767568771664,0.80130624,133.89,133.78,107.10742344]
[1767568771864,5.62885071,133.88,133.78,107.10742344]
[1767568772064,0.80130624,133.89,133.78,107.10742344]
[1767568772261,6.43015695,133.88,133.78,107.10742344]
[1767568772465,0.80130624,133.88,133.78,107.10742344]
[1767568772667,0.80130624,133.88,133.81,6.7287]
[1767568775176,0.80130624,133.88,133.82,6.7281]
[1767568775377,0.80130624,133.9,133.8,107.09212344]
[1767568775674,5.62348958,133.89,133.81,104.6727]
[1767568775877,0.80130624,133.9,133.84,6.7271]
[1767568785981,0.80130624,133.9,133.85,6.7267]
[1767568787680,0.82077166,133.89,133.83,6.7277]
[1767568788086,88.3,133.91,133.85,6.7268]
[1767568788087,0.82077166,133.91,133.85,6.7268]
[1767568789080,0.82077166,133.93,133.84,106.18982587]
[1767568789279,0.82077166,133.93,133.86,1.54372587]
[1767568789474,2.15037,133.94,133.86,106.17342587]
[1767568789690,2.15037,133.94,133.85,106.18502587]
[1767568789989,2.97114166,133.94,133.85,194.46502587]
[1767568790288,4.51486753,133.94,133.85,194.46502587]
[1767568791595,4.51486753,133.94,133.87,6.7255]
[1767568792185,0.82077166,133.91,133.85,6.7266]
[1767568792383,1.54372587,133.9,133.85,6.7266]
[1767568795495,0.82077166,133.91,133.85,6.7266]
[1767568798995,89.80372587,133.92,133.85,6.7266]
[1767568799185,88.26,133.92,133.86,6.7263]
[1767568800295,2.36449753,133.93,133.86,6.7263]
[1767568803393,1.54372587,133.91,133.82,106.20622587]
[1767568804597,0.79896812,133.92,133.85,6.7268]
[1767568804799,0.79896812,133.92,133.83,104.6566]
[1767568805697,0.79896812,133.92,133.86,6.7263]
[1767568806196,4.49306399,133.94,133.87,6.7258]
[1767568806700,0.79896812,133.91,133.82,104.6625]
[1767568806896,2.34269399,133.9,133.81,104.6722]
[1767568807201,2.34269399,133.9,133.81,194.47592587]
[1767568808696,2.34269399,133.9,133.84,6.7273]
[1767568810300,0.79896812,133.9,133.85,6.7268]
[1767568812002,0.79896812,133.9,133.83,6.7275]
[1767568812304,0.79896812,133.9,133.82,1.54372587]
[1767568813700,2.34269399,133.89,133.78,104.6956]
[1767568813903,0.79896812,133.88,133.79,89.80372587]
[1767568814700,0.79896812,133.88,133.82,6.7281]
[1767568815203,0.79896812,133.88,133.8,6.729]
[1767568815999,2.34269399,133.9,133.81,8.27242587]
[1767568816199,5.62237814,133.89,133.81,8.27242587]
[1767568816505,5.62237814,133.88,133.81,8.27242587]
[1767568816707,2.34269399,133.9,133.81,8.27242587]
[1767568817007,5.62286684,133.89,133.81,8.27242587]
[1767568817206,5.62286684,133.88,133.81,8.27242587]
[1767568817395,2.34269399,133.9,133.81,8.27242587]
[1767568817596,5.62306716,133.89,133.81,8.27242587]
[1767568817898,5.62306716,133.88,133.81,8.27242587]
[1767568818096,9.06719399,133.9,133.81,8.27242587]
[1767568818297,5.62286158,133.89,133.81,8.27242587]
[1767568818498,5.62286158,133.88,133.81,8.27242587]
[1767568818700,9.06719399,133.9,133.81,8.27242587]
[1767568818898,5.62327075,133.89,133.81,8.27242587]
[1767568819105,5.62327075,133.88,133.81,8.27242587]
[1767568819303,0.79896812,133.89,133.81,8.27242587]
[1767568819498,5.62347774,133.88,133.81,8.27242587]
[1767568819798,0.79896812,133.89,133.81,8.27242587]
[1767568819997,5.62347774,133.88,133.81,8.27242587]
[1767568820300,0.79896812,133.87,133.77,104.702]
[1767568820502,0.79896812,133.83,133.74,1.54372587]
[1767568820695,0.79896812,133.83,133.75,1.54372587]
[1767568821605,0.79896812,133.83,133.77,6.7309]
[1767568823208,7.52706812,133.83,133.75,8.27532587]
[1767568823408,2.34269399,133.82,133.75,6.7316]
[1767568825809,0.79896812,133.82,133.75,6.7316]
[1767568828114,0.79896812,133.82,133.76,6.7313]
[1767568830809,0.81472337,133.84,133.77,6.7308]
[1767568831012,0.81472337,133.87,133.77,104.7026]
[1767568831216,90.65844924,133.87,133.78,1.54372587]
[1767568831614,0.81472337,133.86,133.78,1.54372587]
[1767568832707,0.81472337,133.86,133.79,6.7297]
[1767568833817,0.81472337,133.82,133.73,106.27602587]
[1767568834215,2.337e-05,133.82,133.78,6.73]
[1767568834421,88.3,133.85,133.78,6.73]
[1767568835116,95.027,133.85,133.78,6.73]
[1767568836308,95.84160921,133.85,133.78,6.73]
[1767568837612,7.54160921,133.85,133.78,6.73]
[1767568837813,95.84160921,133.85,133.78,6.73]
[1767568839120,0.81460921,133.81,133.69,193.0644]
[1767568839313,0.81460921,133.81,133.72,19.08830615]
[1767568840614,0.81460921,133.81,133.73,6.7329]
[1767568840615,7.54360921,133.81,133.73,6.7329]
[1767568842422,95.84360921,133.81,133.73,6.7329]
[1767568842921,89.11460921,133.81,133.73,6.7329]
[1767568844229,0.81460921,133.83,133.73,104.7321]
[1767568845224,0.81460921,133.83,133.75,104.7199]
[1767568845526,89.13460921,133.85,133.75,104.7199]
[1767568846236,0.81460921,133.84,133.75,104.7199]
[1767568846627,0.81460921,133.84,133.77,6.7307]
[1767568853236,95.047,133.85,133.74,107.14296526]
[1767568853237,0.81460921,133.86,133.78,6.7303]
[1767568853539,88.32,133.85,133.76,107.12296526]
[1767568853941,88.32,133.85,133.79,6.7297]
[1767568857442,89.13460921,133.85,133.79,6.7297]
[1767568858842,0.81460921,133.84,133.77,6.7305]
[1767568859049,89.11460921,133.84,133.75,104.7186]
[1767568860643,89.11460921,133.84,133.78,6.7304]
[1767568862847,0.8533714,133.91,133.8,107.09426526]
[1767568863153,0.8533714,133.91,133.82,107.07556526]
[1767568863737,6.46086573,133.9,133.8,107.09426526]
[1767568863940,0.8533714,133.9,133.8,107.09426526]
[1767568864640,0.8533714,133.9,133.83,6.7278]
[1767568867051,89.1533714,133.92,133.84,6.7273]
[1767568868036,0.8533714,133.91,133.84,6.7273]
[1767568871652,0.8533714,133.91,133.85,6.7268]
[1767568872346,0.8533714,133.91,133.83,6.7276]
[1767568873454,89.1333714,133.93,133.83,104.6556]
[1767568873653,2.15037,133.94,133.84,107.06296526]
[1767568873859,2.15037,133.94,133.85,104.6414]
[1767568874249,2.15037,133.94,133.87,6.7258]
[1767568874757,2.15037,133.94,133.86,2.41616526]
[1767568875163,3.0037414,133.94,133.86,6.726]
[1767568875458,3.0037414,133.94,133.85,104.6416]
[1767568875661,0.8533714,133.99,133.87,104.6233]
[1767568875849,6.7205,133.98,133.9,6.7243]
[1767568876052,0.8533714,133.99,133.9,107.01786526]
[1767568876246,0.8533714,134.02,133.94,2.41616526]
[1767568876557,6.7181,134.03,133.94,9.13856526]
[1767568876859,0.8533714,134.04,133.94,2.41616526]
[1767568877155,0.8533714,134.07,133.99,104.5312]
[1767568877350,0.8533714,134.13,134.05,104.4852]
[1767568877553,0.8533714,134.14,134.02,2.41616526]
[1767568877745,0.8533714,134.12,134.02,88.28]
[1767568877955,0.8533714,134.12,134.03,104.5001]
[1767568878163,0.8533714,134.16,134.05,111.1999]
[1767568878372,0.8533714,134.16,134.06,104.4765]
[1767568878864,0.8533714,134.16,134.06,111.1925]
[1767568879066,0.8533714,134.16,134.04,2.41616526]
[1767568879255,0.8533714,134.14,134.04,94.9773]
[1767568879870,0.8533714,134.14,134.04,199.4701]
[1767568880073,0.8533714,134.14,134.06,104.4751]
[1767568880467,0.8533714,134.18,134.09,104.4512]
[1767568881272,0.8533714,134.18,134.08,88.24]
[1767568881478,0.8533714,134.18,134.05,2.41616526]
[1767568881479,0.8533714,134.14,134.05,88.22]
[1767568881685,0.8533714,134.14,134.04,192.7087]
[1767568881967,0.8533714,134.14,134.04,94.9373]
[1767568882360,0.8533714,134.12,134.04,94.9373]
[1767568883075,0.8533714,134.12,134.02,6.7183]
[1767568883571,0.8533714,134.12,134.0,6.7194]
[1767568883770,0.8533714,134.12,134.0,94.9194]
[1767568884173,0.8533714,134.11,134.0,94.9194]
[1767568884365,89.0533714,134.1,134.0,94.9194]
[1767568885272,0.8533714,134.09,134.0,94.9194]
[1767568886272,0.8533714,134.09,134.0,199.4435]
[1767568886467,6.7138,134.12,134.01,111.2343]
[1767568886666,88.18,134.11,134.01,111.2343]
[1767568887270,88.18,134.11,134.01,6.7184]
[1767568887475,89.0333714,134.11,134.01,6.7184]
[1767568889376,89.0333714,134.11,134.02,111.225]
[1767568889568,89.0333714,134.11,134.02,6.718]
[1767568889569,0.8533714,134.1,134.02,6.718]
[1767568890379,88.18,134.11,134.03,6.7175]
[1767568890568,0.85455979,134.13,134.03,111.2165]
[1767568891871,0.85455979,134.13,134.04,94.8769]
[1767568893068,0.85455979,134.13,134.04,88.16]
[1767568893664,7.56785979,134.13,134.04,88.16]
[1767568894069,0.85455979,134.13,134.04,88.16]
[1767568896582,0.94303227,134.12,134.04,88.16]
[1767568899276,0.94303227,134.12,134.04,94.8772]
[1767568900176,0.94303227,134.12,134.05,6.7167]
[1767568904197,0.94303227,134.12,134.04,88.16]
[1767568904487,2.48209684,134.12,134.04,88.16]
[1767568904681,0.94303227,134.09,134.01,6.7186]
[1767568904882,1.53906457,134.08,134.0,1.53906457]
[1767568905088,2.48209684,134.08,134.0,1.53906457]
[1767568905981,0.94303227,134.08,134.0,1.53906457]
[1767568906579,0.94303227,134.08,133.99,192.6691]
[1767568907588,0.94303227,134.08,134.01,6.7186]
[1767568907784,0.94303227,134.08,133.99,88.14]
[1767568908486,7.65863227,134.08,134.0,6.7193]
[1767568908792,0.94303227,134.08,134.0,6.7193]
[1767568910382,0.94303227,134.08,134.01,6.7188]
[1767568916393,0.94303227,134.07,133.99,94.8596]
[1767568916593,0.94303227,134.07,133.99,6.7196]
[1767568916797,0.94303227,134.05,133.95,105.88902443]
[1767568916995,89.08303227,134.05,133.95,210.44752443]
[1767568917287,5.59177675,134.04,133.95,210.44752443]
[1767568917492,89.08303227,134.05,133.96,104.5539]
[1767568917794,5.5917808,134.04,133.96,104.5539]
[1767568917993,89.08303227,134.05,133.96,104.5539]
[1767568918392,5.60101796,134.04,133.96,104.5539]
[1767568918587,89.08303227,134.05,133.98,6.7202]
[1767568918792,5.60101796,134.04,133.98,6.7202]
[1767568918992,89.08303227,134.05,133.98,6.7202]
[1767568919189,5.60101796,134.04,133.98,6.7202]
[1767568919396,5.60101796,134.03,133.98,6.7202]
[1767568919697,89.08303227,134.05,133.98,6.7202]
[1767568919890,5.6100315,134.04,133.98,6.7202]
[1767568920095,5.6100315,134.03,133.98,6.7202]
[1767568920296,5.61879812,134.02,133.98,6.7202]
[1767568920495,89.08303227,134.05,133.98,6.7202]
[1767568920686,5.61879812,134.04,133.98,6.7202]
[1767568920891,5.61879812,134.03,133.98,6.7202]
[1767568921086,89.08303227,134.05,133.98,6.7202]
[1767568921891,0.93704676,134.04,133.96,6.7211]
[1767568923195,0.93704676,134.04,133.95,104.5595]
[1767568924601,0.93704676,134.04,133.98,6.7202]
[1767568926201,0.93704676,134.04,133.96,6.721]
[1767568926404,0.93704676,134.04,133.94,108.34867643]
[1767568926598,0.93704676,134.04,133.96,1.54075416]
[1767568926808,89.70075416,134.05,133.96,106.09225416]
[1767568926809,88.16,134.05,133.96,106.09225416]
[1767568927104,88.16,134.05,133.98,1.54075416]
[1767568928703,88.16,134.05,133.99,6.7197]
[1767568929802,0.93704676,134.06,133.98,106.07595416]
[1767568931401,0.93704676,134.06,134.01,6.7187]
[1767568931608,0.93704676,134.08,134.0,1.54075416]
[1767568931804,0.93704676,134.08,134.01,0.05689827]
[1767568932603,2.47780092,134.07,134.01,0.05689827]
[1767568932807,0.93704676,134.06,134.01,0.05689827]
[1767568933707,0.93704676,134.06,134.01,6.77559827]
[1767568935706,0.93704676,134.06,134.01,0.05689827]
[1767568936312,104.4424,134.11,134.04,1.54075416]
[1767568936313,0.93704676,134.11,134.04,1.54075416]
[1767568936502,0.93704676,134.11,134.02,106.04665416]
[1767568936697,1.54075416,134.13,134.0,104.5207]
[1767568936698,0.93704676,134.08,134.0,104.5207]
[1767568936900,0.93704676,134.08,133.99,194.22985416]
[1767568936901,0.93704676,134.08,134.02,6.7183]
[1767568940118,6.715,134.09,134.02,6.7183]
[1767568940414,7.65204676,134.09,134.02,6.7183]
[1767568941221,0.93704676,134.09,134.03,8.25855416]
[1767568941420,88.16,134.1,134.03,8.25855416]
[1767568941619,88.16,134.1,134.03,6.7178]
[1767568941920,88.16,134.1,134.03,8.25855416]
[1767568942511,88.16,134.1,134.04,6.7173]
[1767568943722,0.93704676,134.11,134.04,6.7173]
[1767568947315,89.70075416,134.13,134.02,104.5061]
[1767568947523,0.93704676,134.1,134.01,1.54075416]
[1767568948317,0.93704676,134.09,134.02,6.7183]
[1767568954928,8.25445416,134.12,134.03,1.54075416]
[1767568955427,9.23065738,134.12,134.03,8.25825416]
[1767568957425,0.97620322,134.12,134.03,1.54075416]
[1767568958631,0.97620322,134.12,134.05,6.7166]
[1767568960430,88.16,134.13,134.06,6.7163]
[1767568963735,15.05354951,134.17,134.09,2.40381527]
[1767568963736,0.97620322,134.17,134.09,2.40381527]
[1767568964351,0.97620322,134.17,134.11,6.7137]
[1767568968636,6.71,134.19,134.11,6.7137]
[1767568968937,7.68620322,134.19,134.12,6.7133]
[1767568969341,0.97620322,134.19,134.13,6.7128]
[1767568969740,0.97620322,134.19,134.11,6.7135]
[1767568970140,0.97620322,134.22,134.13,104.4205]
[1767568970544,0.97620322,134.22,134.14,6.7123]
[1767568970743,0.97620322,134.21,134.14,6.7123]
[1767568971036,0.97620322,134.18,134.1,6.714]
[1767568978047,0.97620322,134.18,134.1,94.814]
[1767568978345,7.68670322,134.18,134.1,94.814]
[1767568979845,0.97620322,134.18,134.1,94.814]
[1767568980745,0.97620322,134.18,134.11,6.7138]
[1767568981640,7.75579108,134.21,134.1,194.94581527]
[1767568982648,7.75579108,134.21,134.13,6.7127]
[1767568983140,1.04649108,134.2,134.13,6.7127]
[1767568985044,1.04649108,134.19,134.13,6.7127]
[1767568985243,1.04649108,134.19,134.11,88.1]
[1767568985640,1.04649108,134.19,134.12,6.7133]
[1767568989645,1.04649108,134.19,134.13,6.7128]
[1767568992251,1.04649108,134.18,134.12,6.7132]
[1767568993954,89.18649108,134.23,134.11,104.4385]
[1767568994144,194.79401527,134.28,134.14,104.4107]
[1767568994459,1.04649108,134.25,134.16,0.05298895]
[1767568994752,1.04649108,134.25,134.14,194.89451527]
[1767568995148,7.75379108,134.25,134.17,6.7108]
[1767568995352,7.75379108,134.25,134.15,104.4055]
[1767568995558,1.04649108,134.27,134.18,0.05338599]
[1767568995946,1.04649108,134.27,134.15,104.4055]
[1767568996355,1.04649108,134.27,134.21,0.05131125]
[1767568996656,1.04649108,134.25,134.21,0.05131125]
[1767569000151,1.04649108,134.27,134.21,0.05131125]
[1767569000959,1.04649108,134.25,134.18,6.7102]
[1767569001162,1.04649108,134.25,134.15,192.4655]
[1767569002270,1.04649108,134.25,134.18,6.7102]
[1767569003971,88.06,134.27,134.18,104.3837]
[1767569004177,89.10649108,134.29,134.19,104.375]
[1767569004367,5.58203457,134.28,134.19,104.375]
[1767569004567,89.10649108,134.29,134.19,104.375]
[1767569004767,5.58203081,134.28,134.19,104.375]
[1767569004973,89.10649108,134.29,134.19,104.375]
[1767569005276,6.62852189,134.28,134.21,6.7087]
[1767569005473,5.58203081,134.27,134.21,6.7087]
[1767569005673,88.06,134.29,134.22,6.7082]
[1767569005874,5.5825275,134.28,134.22,6.7082]
[1767569006073,89.10649108,134.29,134.22,6.7082]
[1767569006386,1.04649108,134.26,134.17,88.06]
[1767569007672,7.75309108,134.26,134.18,6.71]
[1767569007879,1.04649108,134.25,134.18,6.71]
[1767569008269,1.04649108,134.27,134.18,6.71]
[1767569008472,5.58592567,134.26,134.19,6.7097]
[1767569008668,1.04649108,134.27,134.18,104.3838]
[1767569009782,1.04649108,134.27,134.2,6.7091]
[1767569016182,1.04649108,134.27,134.21,6.7088]
[1767569016582,89.16068537,134.29,134.2,104.3679]
[1767569016783,1.10068537,134.33,134.22,106.75371527]
[1767569016982,5.58092986,134.32,134.22,194.79371527]
[1767569017185,7.80398537,134.33,134.25,6.7067]
[1767569017384,5.5785995,134.32,134.25,6.7067]
[1767569017680,7.80398537,134.33,134.24,104.335]
[1767569017681,1.10068537,134.33,134.24,104.335]
[1767569018388,1.10068537,134.33,134.26,6.7063]
[1767569021884,108.21417145,134.34,134.26,6.7063]
[1767569022390,1.10068537,134.33,134.26,6.7063]
[1767569023185,1.10068537,134.33,134.23,192.3644]
[1767569023895,1.10068537,134.31,134.23,6.7076]
[1767569024593,2.63547507,134.31,134.23,6.7076]
[1767569024791,1.10068537,134.31,134.24,6.7072]
[1767569024997,2.63547507,134.33,134.24,1.5347897]
[1767569025791,2.63547507,134.33,134.26,6.7062]
[1767569027490,1.10068537,134.32,134.22,104.3496]
[1767569027684,1.10068537,134.28,134.22,6.7082]
[1767569027983,104.2706,134.33,134.2,105.9026897]
[1767569027984,2.63547507,134.3,134.2,105.9026897]
[1767569028183,2.63547507,134.3,134.23,6.7078]
[1767569029291,9.33997507,134.3,134.21,6.7085]
[1767569029483,88.02,134.3,134.2,1.5347897]
[1767569029691,90.65547507,134.3,134.2,105.8969897]
[1767569030196,97.36007507,134.3,134.21,6.7085]
[1767569030490,1.10068537,134.29,134.21,6.7085]
[1767569030790,2.63547507,134.28,134.21,6.7085]
[1767569031789,9.34097507,134.28,134.19,6.7095]
[1767569031991,1.10068537,134.27,134.18,89.5547897]
[1767569032592,1.10068537,134.27,134.21,6.7088]
[1767569032988,1.10068537,134.27,134.18,193.9362897]
[1767569032989,1.10068537,134.29,134.2,1.5347897]
[1767569033193,89.5547897,134.3,134.2,1.5347897]
[1767569033398,97.35997507,134.3,134.22,6.7082]
[1767569034185,1.10068537,134.29,134.19,104.3733]
[1767569034391,1.10068537,134.29,134.2,1.5347897]
[1767569034700,1.5347897,134.28,134.2,1.5347897]
[1767569034993,1.5347897,134.28,134.18,192.4015]
[1767569034994,1.10068537,134.27,134.18,193.9362897]
[1767569035898,1.10068537,134.27,134.2,6.7093]
[1767569036794,2.63547507,134.33,134.2,105.8458]
[1767569037098,6.68494717,134.32,134.23,1.5347897]
[1767569037298,1.10068537,134.32,134.23,1.5347897]
[1767569037689,7.80438537,134.32,134.23,8.2425897]
[1767569038297,5.58976846,134.31,134.23,8.2425897]
[1767569038498,7.80438537,134.32,134.23,8.2425897]
[1767569038689,5.58976846,134.31,134.23,8.2425897]
[1767569038991,7.80438537,134.32,134.23,8.2425897]
[1767569041992,7.80438537,134.32,134.24,6.7073]
[1767569044601,7.80438537,134.32,134.25,6.7068]
[1767569045097,1.10068537,134.32,134.26,6.7063]
[1767569045492,94.7028,134.34,134.26,6.7063]
[1767569045493,6.7028,134.34,134.26,6.7063]
[1767569045695,1.10737501,134.35,134.25,1.5347897]
[1767569045893,5.59277066,134.34,134.25,1.5347897]
[1767569046097,1.10737501,134.35,134.25,1.5347897]
[1767569046291,5.59276538,134.34,134.25,1.5347897]
[1767569046601,1.10737501,134.33,134.24,1.5347897]
[1767569047195,1.10737501,134.32,134.25,6.7066]
[1767569047601,2.64216471,134.32,134.25,6.7066]
[1767569048403,1.10737501,134.31,134.23,8.2424897]
[1767569048604,1.10737501,134.31,134.23,6.7077]
[1767569048904,1.10737501,134.31,134.23,1.5347897]
[1767569049106,1.10737501,134.31,134.23,6.7075]
[1767569049293,1.10737501,134.29,134.23,6.7075]
[1767569049801,1.10737501,134.29,134.21,8.2432897]
[1767569049998,1.10737501,134.29,134.21,1.5347897]
[1767569051306,1.10737501,134.29,134.23,6.7078]
[1767569054994,2.64216471,134.28,134.21,6.7085]
[1767569058604,1.10737501,134.28,134.21,6.7085]
[1767569063206,1.10737501,134.28,134.22,6.7083]
[1767569067216,6.72113059,134.27,134.22,6.7083]
[1767569067510,1.10737501,134.27,134.22,6.7083]
[1767569073723,6.7049,134.29,134.22,6.7083]
[1767569074024,5.6142548,134.28,134.22,6.7083]
[1767569074224,5.6142548,134.27,134.22,6.7083]
[1767569074424,1.07619926,134.28,134.22,6.7083]
[1767569074725,5.61415965,134.27,134.22,6.7083]
[1767569074929,1.07619926,134.28,134.22,6.7083]
[1767569075126,5.61416495,134.27,134.22,6.7083]
[1767569075322,1.07619926,134.28,134.22,6.7083]
[1767569075530,5.61412707,134.27,134.22,6.7083]
[1767569075728,1.07619926,134.28,134.22,6.7083]
[1767569076020,1.13536655,134.26,134.16,104.3962]
[1767569076224,6.74870499,134.25,134.16,1.5347897]
[1767569076422,1.13536655,134.25,134.16,1.5347897]
[1767569077324,1.13536655,134.24,134.16,1.5347897]
[1767569078527,1.13536655,134.24,134.17,8.8532]
[1767569082326,2.67015625,134.24,134.17,8.8532]
[1767569082531,1.13536655,134.22,134.17,2.1424]
[1767569084626,1.13536655,134.2,134.09,104.4542]
[1767569084831,1.13536655,134.18,134.09,104.4542]
[1767569085529,1.13536655,134.18,134.11,6.7135]
[1767569087030,7.84496655,134.2,134.12,6.7132]
[1767569090933,1.13536655,134.19,134.12,6.7132]
[1767569091132,1.13536655,134.17,134.05,2.40129922]
[1767569091433,1.13536655,134.17,134.05,106.88409922]
[1767569091839,1.13536655,134.15,134.05,104.4828]
[1767569092036,1.13536655,134.15,134.04,88.06]
[1767569092339,1.13536655,134.15,134.03,106.89809922]
[1767569092533,1.13536655,134.15,134.03,194.95809922]
[1767569093241,7.84786655,134.14,134.06,6.716]
[1767569095941,1.13536655,134.13,134.06,6.716]
[1767569100435,6.712,134.15,134.06,6.716]
[1767569100641,1.07028253,134.16,134.05,106.88429922]
[1767569100847,1.07028253,134.16,134.05,2.40129922]
[1767569101041,1.07028253,134.16,134.04,104.4924]
[1767569101445,1.07028253,134.18,134.07,106.86809922]
[1767569101743,1.07028253,134.17,134.07,106.86809922]
[1767569102049,1.07028253,134.16,134.05,106.88429922]
[1767569102438,1.07028253,134.15,134.07,6.7156]
[1767569102640,1.07028253,134.15,134.03,90.50129922]
[1767569103139,7.78298253,134.14,134.03,194.99939922]
[1767569104541,7.78298253,134.14,134.06,6.7163]
[1767569104841,7.78328253,134.13,134.03,194.99939922]
[1767569105036,1.07028253,134.12,134.03,90.50129922]
[1767569105646,1.07028253,134.12,134.03,88.1]
[1767569105846,7.78378253,134.12,134.04,6.717]
[1767569106451,1.07028253,134.11,134.04,6.717]
[1767569106760,1.07028253,134.11,134.02,261.80762106]
[1767569106761,1.07028253,134.1,134.02,261.80762106]
[1767569107050,1.07028253,134.1,134.02,255.08942106]
[1767569107253,1.07028253,134.1,134.03,6.7177]
[1767569108848,1.07028253,134.09,134.01,6.7187]
[1767569111246,1.07028253,134.08,133.99,17.62901288]
[1767569111445,1.07028253,134.08,133.99,6.7198]
[1767569112639,1.07028253,134.07,133.97,88.1]
[1767569112845,1.07028253,134.06,133.96,104.5549]
[1767569113246,1.07028253,134.06,134.0,6.7192]
[1767569113455,1.07028253,134.11,134.0,104.5228]
[1767569113750,1.07028253,134.11,134.01,106.91709922]
[1767569114054,1.07028253,134.14,134.02,104.5046]
[1767569114238,89.19028253,134.13,134.03,2.40129922]
[1767569114442,1.07028253,134.12,134.03,2.40129922]
[1767569115351,1.07028253,134.12,134.05,6.7167]
[1767569120248,1.07028253,134.12,134.03,106.89919922]
[1767569120450,1.07028253,134.12,134.06,6.7163]
[1767569122156,1.07028253,134.12,134.04,6.7171]
[1767569123156,1.07028253,134.12,134.05,6.7168]
[1767569126359,1.07028253,134.12,134.06,6.7163]
[1767569126549,1.07028253,134.15,134.06,104.4752]
[1767569127560,1.07028253,134.17,134.1,6.7143]
[1767569127758,5.5968118,134.16,134.08,104.4564]
[1767569127958,1.07028253,134.17,134.08,104.4564]
[1767569128762,1.07028253,134.17,134.11,6.7136]
[1767569129451,5.60187444,134.16,134.11,6.7136]
[1767569129657,1.07028253,134.17,134.11,6.7136]
[1767569129851,5.60201805,134.16,134.11,6.7136]
[1767569130051,1.07028253,134.17,134.11,6.7136]
[1767569130265,5.60207532,134.16,134.11,6.7136]